Cogmind - Beta 16.1 @@@ ROGUE MODE // 2026.06.22 @ 12:27:05 Player: BVrutally Odd Result: Defending 0bPrime! Performance ------------- Evolutions (8) 4000 Regions Visited (21) 4200 Robots Destroyed (283) 1415 Value Destroyed (13775) 13775 Prototype IDs (119) 2380 Alien Tech Used (4) 800 Bonus (41126) 41126 TOTAL SCORE: 67696 Bonus ------- High Alert Combat Kills 9572 Follower Combat Kills 776 Registered with UFD 300 Met Optimus in HQ 500 Met Zhirov 300 Met Warlord at Base 500 MAIN.C Attacked Warlord 500 Destroyed Superfortress 15000 Met Optimus at Protoforge 1000 Executed Drillbomb Mission 10000 Win 3000 Friendly Fire -322 Cogmind --------- Core Integrity 350/1450 Matter 1800/1800 Energy 870/870 System Corruption 16% Temperature Cool (0) Movement Hovering (35) Location 0bPrime Parts ------- > --- POWER (2) -------- Experimental Antimatter Reactor Concept Zero-point Core > --- PROPULSION (7) --- Cooled Gravmag System Combat Linear Gravjet Experimental Antigrav System Experimental Antigrav System Experimental Antigrav System Gravjet Array > --- UTILITY (12) ----- Concept Antigrav Storage Unit Concept NT7 Matterbank Concept NT7 Matterbank Experimental Optical Array Experimental Active Sensor Suite Experimental Targeting Computer Concept Networked Targeting System Experimental Core Analyzer Centrium Light Armor Plating Centrium Light Armor Plating Concept Matter Streamer > --- WEAPON (2) ------- Concept Smart ZDS Vibroblade > --- INVENTORY (25) --- Light Quantum Reactor Hybrid Graviton Reactor Concept Zero-point Core Antigrav System Improved Antigrav System Gravjet Array Concept Chromion Battery (800) Concept NT7 Matterbank (750) Concept NT7 Matterbank (750) Concept NT7 Matterbank (750) Concept Weapon Articulator Experimental Kinecellerator Tactical Quantum Warhead Concept Rapid Grenade Launcher Peak State ------------ > --- POWER ------------ Experimental Antimatter Reactor Concept Zero-point Core > --- PROPULSION ------- Cooled Gravmag System Combat Linear Gravjet Experimental Antigrav System Experimental Antigrav System Experimental Antigrav System Gravjet Array > --- UTILITY ---------- Concept Antigrav Storage Unit Concept NT7 Matterbank Concept NT7 Matterbank Experimental Optical Array Experimental Active Sensor Suite Experimental Targeting Computer Concept Networked Targeting System Experimental Core Analyzer Centrium Light Armor Plating Centrium Light Armor Plating Concept Matter Streamer > --- WEAPON ----------- Concept Rapid Grenade Launcher Concept Smart ZDS > --- INVENTORY -------- Light Quantum Reactor Hybrid Graviton Reactor Concept Zero-point Core Antigrav System Improved Antigrav System Gravjet Array Concept Chromion Battery Concept NT7 Matterbank Concept NT7 Matterbank Concept NT7 Matterbank Concept Weapon Articulator Experimental Kinecellerator Tactical Quantum Warhead Vibroblade UFD Drillbomb [Rating: 256] Favorites ----------- Power Light Ion Engine Engine Light Ion Engine Power Core Light Fission Core Reactor Improved Quantum Reactor Propulsion Light Treads Treads Light Treads Hover Unit Cooled Antigrav System Flight Unit Field Propulsion Drive Utility Seismic Detector Device Seismic Detector Storage High-capacity Storage Unit Processor Experimental Optical Array Hackware Hacking Suite Protection Makeshift Ablative Armor Artifact Phase Redirector Weapon Subdweller Beam Cannon Energy Gun EM Pulse Gun Energy Cannon Subdweller Beam Cannon Ballistic Gun Assault Rifle Ballistic Cannon Battle Cannon Launcher Concept Smart ZDS Special Weapon Remote Datajack Impact Weapon Power Maul Slashing Weapon Vibroblade Piercing Weapon Lance Build | -11 -10 -10 -7 -7 -5 -5 -5 -5 -5 -5 -4 -4 -4 -4 -4 -3 -3 -3 -2 -2 -2 ------- Run | Yrd Mat Sub Rec Scr Fac Was Fac Upp Upp War Pro Fac Upp Upp Zhi Pro Res Tes Res Qua Frg Slots Evolved 16 | . . . . . 10 . . . . . . 2 . . . . 2 . 2 . . Power 1 | . . . . . 1 . . . . . . . . . . . . . . . . Propulsion 5 | . . . . . 5 . . . . . . . . . . . . . . . . Utility 10 | . . . . . 4 . . . . . . 2 . . . . 2 . 2 . . Weapon . | . . . . . . . . . . . . . . . . . . . . . . Parts Attached 148 | 7 4 9 . 7 11 . 9 1 . 14 . 3 . . 5 1 15 12 4 3 43 Power 16 | 1 . 2 . 1 . . 2 . . 1 . . . . 2 . 1 1 . . 5 Engine 5 | 1 . 2 . . . . 2 . . . . . . . . . . . . . . Core 2 | . . . . 1 . . . . . . . . . . . . . . . . 1 Reactor 9 | . . . . . . . . . . 1 . . . . 2 . 1 1 . . 4 Propulsion 33 | 2 . 1 . 1 2 . 2 . . 3 . . . . . . 5 3 2 2 10 Treads 4 | 2 . 1 . 1 . . . . . . . . . . . . . . . . . Leg . | . . . . . . . . . . . . . . . . . . . . . . Wheel . | . . . . . . . . . . . . . . . . . . . . . . Hover 23 | . . . . . . . . . . 2 . . . . . . 4 3 2 2 10 Flight 6 | . . . . . 2 . 2 . . 1 . . . . . . 1 . . . . Utility 69 | 2 1 2 . 1 7 . 3 1 . 6 . 3 . . 3 1 5 7 2 1 24 Device 27 | 1 . . . 1 1 . 3 1 . 2 . 1 . . 1 . 2 2 2 1 9 Storage 10 | 1 1 . . . 1 . . . . . . . . . 1 . . 1 . . 5 Processor 11 | . . . . . 1 . . . . 2 . 1 . . . 1 . . . . 6 Hackware 10 | . . . . . 3 . . . . 1 . 1 . . . . 3 2 . . . Protection 10 | . . 2 . . 1 . . . . 1 . . . . 1 . . 2 . . 3 Artifact 1 | . . . . . . . . . . . . . . . . . . . . . 1 Weapon 30 | 2 3 4 . 4 2 . 2 . . 4 . . . . . . 4 1 . . 4 Energy Gun 4 | 2 . 1 . . . . . . . . . . . . . . . . . . 1 Energy Cannon 8 | . . 2 . 2 . . 1 . . 1 . . . . . . 1 1 . . . Ballistic Gun 3 | . 2 . . 1 . . . . . . . . . . . . . . . . . Ballistic Cannon 2 | . . 1 . . . . . . . . . . . . . . . . . . 1 Launcher 5 | . 1 . . 1 . . . . . . . . . . . . 1 . . . 2 Special Weapon 4 | . . . . . 1 . . . . 3 . . . . . . . . . . . Impact Weapon 1 | . . . . . 1 . . . . . . . . . . . . . . . . Slashing Weapon 2 | . . . . . . . . . . . . . . . . . 2 . . . . Piercing Weapon 1 | . . . . . . . 1 . . . . . . . . . . . . . . Special Melee Weapon . | . . . . . . . . . . . . . . . . . . . . . . Unidentified Prototypes 32 | . . . . . . . . . . 7 . . . . 6 . 5 4 . 3 7 Parts Lost 40 | . . 3 . . 2 . 2 . . 3 . . . . . 2 . . 1 . 27 Power 7 | . . 2 . . . . 1 . . . . . . . . . . . . . 4 Propulsion 11 | . . . . . . . . . . 1 . . . . . . . . . . 10 Utility 20 | . . 1 . . 2 . 1 . . 2 . . . . . 2 . . 1 . 11 Weapon 2 | . . . . . . . . . . . . . . . . . . . . . 2 Highest Loss Streak 10 | . . 1 . . 1 . 1 . . 2 . . . . . 2 . . 1 . 10 To Critical Strikes 1 | . . . . . . . . . . . . . . . . . . . . . 1 Average Backups 13 | . 9 17 16 15 7 10 9 9 9 9 10 9 10 10 9 10 8 10 12 13 14 Power 1 | . 1 1 . . . . . . . 1 2 2 2 2 1 1 1 1 1 1 1 Propulsion 2 | . . 3 4 4 . . . . . 2 3 2 2 2 2 2 1 2 4 3 2 Utility 4 | . 4 5 5 5 . 2 1 1 1 1 2 1 3 3 3 3 1 2 1 3 5 Weapon 5 | . 3 7 7 5 4 5 4 4 4 2 2 2 2 2 2 2 3 4 5 5 4 Tool/Special . | . . . . . . . . . . . . . . . . . . . . . . Unused Backups 29 | . . 3 . 3 8 . . . . 1 . . . . 2 . 1 . . 1 10 Power 4 | . . 1 . . . . . . . . . . . . 1 . . . . . 2 Propulsion 9 | . . 1 . . 3 . . . . . . . . . . . 1 . . . 4 Utility 8 | . . . . . 3 . . . . . . . . . 1 . . . . . 4 Weapon 7 | . . 1 . 3 2 . . . . 1 . . . . . . . . . . . Tool/Special 1 | . . . . . . . . . . . . . . . . . . . . 1 . Average Slot Usage (%) 92 | . 100 99 100 95 67 60 71 84 84 80 77 78 80 80 80 71 85 97 98 99 85 Engine 8 | . 14 14 14 8 . . 2 10 10 6 5 5 5 5 5 5 2 . . . . Core 1 | . . . . 5 5 5 3 . . . . . . . . . . . . . 1 Reactor 1 | . . . . . . . . . . 3 5 5 5 5 5 5 5 9 8 8 6 Treads 17 | . 28 28 28 26 . . . . . . . . . . . . . . . . . Hover 4 | . . . . . . . . . . . . . . . . . 10 31 29 30 26 Flight 3 | . . . . . 9 10 15 21 21 18 16 15 15 15 15 15 8 . . . . Device 13 | . 14 12 14 13 10 5 17 21 21 9 5 13 15 14 15 10 13 14 20 26 14 Storage 10 | . 14 14 14 13 3 5 5 5 5 5 5 5 5 5 5 5 4 4 4 4 7 Processor 3 | . . . . . 4 5 5 5 5 6 11 10 10 10 10 10 10 9 8 8 14 Hackware 3 | . . . . . 14 15 11 10 10 13 11 14 15 15 15 10 15 14 12 8 2 Protection 1 | . . 1 . . 9 5 1 . . 4 5 . . . . 4 4 2 3 3 3 Energy Gun 1 | . 11 . . . . . . . . . . . . . . . . . . . . Energy Cannon 8 | . . 7 28 24 . . . . . 3 3 4 5 4 5 . . 2 . 1 1 Ballistic Gun 4 | . 14 7 . 2 . . . . . . . . . . . . . . . . . Ballistic Cannon 3 | . . 12 . . . . . . . . . . . . . . . . . . . Piercing Weapon 1 | . . . . . . . 4 5 5 4 5 5 5 5 5 4 3 2 4 4 . Peak Build Rating 256 | 7 8 16 16 30 83 77 98 98 98 127 124 132 132 133 136 136 156 159 174 180 256 Average Rating 63 | 5 7 12 16 22 80 77 87 98 98 114 123 130 132 131 134 124 148 150 168 177 193 On Entrance 95 | . 7 8 16 16 30 77 77 98 98 98 124 124 132 132 132 136 131 151 155 174 178 Avg Prop Armor Cover (%) 1 | . . . . . . . 1 1 . 2 . . . . . . . . . . 6 Naked Turns 181 | . . . . 181 . . . . . . . . . . . . . . . . . Heaviest Build 104 | 12 49 60 60 64 30 27 34 34 32 48 48 48 42 46 47 47 72 84 87 90 104 Greatest Support 131 | 40 40 40 40 48 32 32 40 48 48 48 48 48 48 48 48 48 86 108 110 121 131 Greatest Overweight (x) 1 | . 1 1 1 1 . . . . . . . . . . . . . . 1 1 1 Average Overweight (x) . | . . 1 1 . . . . . . . . . . . . . . . . . . Largest Inventory Capacity 25 | 8 20 20 20 20 20 10 10 10 10 10 10 10 10 10 10 10 10 15 15 15 25 Average Capacity 16 | 7 14 20 20 19 8 10 10 10 10 10 10 10 10 10 10 10 10 13 15 15 18 Most Carried 25 | 2 14 20 19 20 20 10 10 10 10 10 10 10 10 10 10 10 10 15 15 15 25 Average Carried 15 | . 9 18 19 18 7 10 9 9 9 9 10 9 10 10 9 9 9 12 14 14 15 Final Capacity 25 | 8 20 20 20 20 10 10 10 10 10 10 10 10 10 10 10 10 10 15 15 15 25 Final Carried 20 | 2 14 19 19 20 10 10 10 9 10 10 10 10 10 10 10 10 10 15 15 15 15 Class Distribution -------------------- 62% | Mutant 18% | Hacker-Scout 6% | Hacker-Ninja 4% | Scout 3% | Hacker-Mutant Dominant Class ---------------- Mutant | -10/Materials Mutant | -10/Subcaves Mutant | -7/Recycling Mutant | -7/Scraptown Hacker-Scout | -5/Factory Hacker-Mutant | -5/Waste Hacker-Scout | -5/Factory Hacker-Scout | -5/Upper Caves Hacker-Ninja | -5/Upper Caves Hacker-Scout | -5/Warlord Hacker-Mutant | -4/Proximity Caves Hacker-Scout | -4/Factory Hacker-Scout | -4/Upper Caves Hacker-Scout | -4/Upper Caves Hacker-Scout | -4/Zhirov Hacker-Scout | -3/Proximity Caves Hacker-Scout | -3/Research Hacker-Ninja | -3/Testing Hacker-Ninja | -2/Research Hacker-Ninja | -2/Quarantine Scout | -2/Protoforge Resources | -11 -10 -10 -7 -7 -5 -5 -5 -5 -5 -5 -4 -4 -4 -4 -4 -3 -3 -3 -2 -2 -2 ----------- Run | Yrd Mat Sub Rec Scr Fac Was Fac Upp Upp War Pro Fac Upp Upp Zhi Pro Res Tes Res Qua Frg Matter Collected 27747 | 270 360 1072 . 111 197 . 241 16 30 260 . 84 . 144 . 198 270 236 153 328 23777 Remotely 14889 | . . . . . . . . . . . . . . . . . . . . . 14889 Salvage Created 6452 | 234 1004 379 . . 452 . 226 52 253 61 . 68 55 108 . . 780 236 542 379 1623 Parts 340 | 24 84 28 . . 16 . 17 2 4 7 . 2 2 6 . . 24 17 21 21 65 Haulers Intercepted 7 | . 2 . . . 2 . . . . . . . . . . . 3 . . . . Recyclers Shooed 4 | . 3 . . . . . . . . . . . . . . . 1 . . . . Parts Field Recycled . | . . . . . . . . . . . . . . . . . . . . . . Retrieved Matter . | . . . . . . . . . . . . . . . . . . . . . . Parts Self-Destructed 23 | . . 10 . . . . . 7 . . . . 1 3 . 2 . . . . . Prevented . | . . . . . . . . . . . . . . . . . . . . . . Parts Restored 3 | . . . . . . . . . . . . . . . . . . . . . 3 Faulty 3 | . . . . . . . . . . . . . . . . . . . . . 3 Kills | -11 -10 -10 -7 -7 -5 -5 -5 -5 -5 -5 -4 -4 -4 -4 -4 -3 -3 -3 -2 -2 -2 ------- Run | Yrd Mat Sub Rec Scr Fac Was Fac Upp Upp War Pro Fac Upp Upp Zhi Pro Res Tes Res Qua Frg Combat Hostiles Destroyed 189 | . 13 14 . . 5 . 4 . . . . . . 5 . 2 1 1 . 4 140 Melee 12 | . . . . . . . . . . . . . . 1 . . 1 1 . . 9 Guns 8 | . 4 4 . . . . . . . . . . . . . . . . . . . Cannons 30 | . . 10 . . . . . . . . . . . . . . . . . . 20 AOE 139 | . 9 . . . 5 . 4 . . . . . . 4 . 2 . . . 4 111 Classes Destroyed 27 | 3 6 2 . . . . . 1 1 1 . 1 . . . 1 1 . . . 10 Worker 21 | 2 5 . . . 3 . 2 . . . . . . . . . 2 . 7 . . Builder 13 | . 6 . . . . . . . . . . . . . . . 1 1 3 2 . Tunneler 8 | 5 1 . . . . . 2 . . . . . . . . . . . . . . Hauler 7 | . 2 . . . 2 . . . . . . . . . . . 3 . . . . Recycler 15 | 1 4 . . . 1 . 1 . . . . . . . . . 3 1 2 2 . Minesweeper 1 | . . . . . . . . 1 . . . . . . . . . . . . . Mechanic 8 | . . . . . . . . . . . . 1 . . . . . . . . 7 Operator 8 | . 3 . . . . . 1 . . . . 1 . . . . . 1 . 1 1 Drone 16 | . . . . . . . . . . . . . . . . 2 . . . . 14 Watcher 10 | . 3 . . . 2 . . . . . . . . . . . . 1 2 1 1 Swarmer 44 | . 3 2 . . 5 . 4 . . . . . . 5 . . . . . 4 21 Saboteur 3 | . . . . . . . . . . . . . . . . . . . . . 3 Grunt 37 | . 10 1 . . . . . . . . . . . . . . . . . . 26 Brawler 3 | . . . . . . . . . . . . . . . . . . . . . 3 Duelist 2 | . . . . . . . . . . . . . . . . . . . . . 2 Protector 3 | . . . . . . . . . . 1 . . . . . . . . . . 2 Sentry 6 | . . 1 . . . . . . . . . . . . . . . . . . 5 Specialist 2 | . . . . . . . . . . . . . . . . . . . . . 2 Hunter 9 | . . . . . . . . . . . . . . . . . . . . . 9 Programmer 14 | . . . . . . . . . . . . . . . . . 1 1 . . 12 Behemoth 1 | . . . . . . . . . . . . . . . . . . . . . 1 Hotshot 8 | . . . . . . . . . . . . . . . . . . . . . 8 Decapitator 7 | . . . . . . . . . . . . . . . . . . . . . 7 Striker 8 | . . . . . . . . . . . . . . . . . . . . . 8 Executioner 16 | . . . . . . . . . . . . . . . . . . . . . 16 Subdweller 10 | . . 10 . . . . . . . . . . . . . . . . . . . Elite 3 | . . . . . . . . . . . . . . . . . . . . . 3 Decomposer 4 | . . . . . . . . 1 . . . . . 3 . . . . . . . Packrat 2 | . . . . . . . . . 2 . . . . . . . . . . . . Samaritan 3 | . . . . . . . . . 2 . . . 1 . . . . . . . . Best Kill Streak 16 | 6 5 2 . . 7 . 4 1 . . . 1 . 3 . 2 3 1 11 5 16 Combat Bots Only 15 | . 2 2 . . 5 . 4 . . . . . . 3 . 2 1 1 . 4 15 Max Kills in Single Turn 7 | 1 2 1 . . 4 . 2 1 1 1 . 1 1 2 . 2 1 1 1 4 7 Gunslinging . | . . . . . . . . . . . . . . . . . . . . . . Exploded 5 | . 1 . . . 4 . 2 . . . . . . 2 . 2 . . . 4 5 Melee 1 | . . . . . . . . . . . . . . 1 . . 1 1 . . 1 Uniques/NPCs Destroyed . | . . . . . . . . . . . . . . . . . . . . . . Combat | -11 -10 -10 -7 -7 -5 -5 -5 -5 -5 -5 -4 -4 -4 -4 -4 -3 -3 -3 -2 -2 -2 -------- Run | Yrd Mat Sub Rec Scr Fac Was Fac Upp Upp War Pro Fac Upp Upp Zhi Pro Res Tes Res Qua Frg Hostile Shots Fired 623 | . 25 60 . . 32 . 21 . . 9 58 . . 21 . . 2 26 17 30 322 Missed 320 | . 9 21 . . 16 . 10 . . 7 38 . . 12 . . . 10 11 24 162 Hits 303 | . 16 39 . . 16 . 11 . . 2 20 . . 9 . . 2 16 6 6 160 Melee 9 | . . . . . . . . . . . . . . . . . . . . . 9 Projectile 294 | . 16 39 . . 16 . 11 . . 2 20 . . 9 . . 2 16 6 6 151 AOE 5 | . . . . . . . . . . 3 . . . . . . . . . . 2 Critical Strikes 30 | . . 3 . . 2 . . . . . 4 . . . . . . 3 . 1 17 Actively Blocked 6 | . . . . . . . . . . . . . . . . . . . . 1 5 Part Disruptions 1 | . . . . . . . . . . . . . . . . . . . . . 1 Damage Taken 8060 | . 227 746 . . 322 . 195 . . 136 368 . . 148 . 40 53 454 179 151 5041 Core 1264 | . 45 104 . . . . . . . . 36 . . 13 . . . 46 . . 1020 Absorbed by Shields 5 | . . . . . . . . . . . . . . . . . . 5 . . . Redirected to Core 172 | . . . . . . . . . . . . . . . . . . . . . 172 Redirected to Shielding 104 | . . . . . 104 . . . . . . . . . . . . . . . . Regen/Repaired (Parts) 418 | . . . . 271 . . . . . . . . . . . . . . . 147 . Core Remaining (%) 75 | 100 . . . 40 . . . . . . 96 . . . . 98 . 96 . . 24 Volleys Fired 517 | 32 80 82 . . 8 . 10 2 1 9 4 4 5 13 . 4 20 3 9 15 216 Largest 2 | 2 2 2 . . 1 . 1 1 1 1 1 1 1 1 . 1 1 1 1 1 1 Hottest 130 | 80 80 113 . . 85 . 90 90 90 90 90 90 90 90 . 90 113 113 113 113 130 Shots Fired 623 | 34 133 136 . . 8 . 10 2 1 9 4 4 5 13 . 4 20 3 9 15 213 Gun 202 | 34 117 51 . . . . . . . . . . . . . . . . . . . Cannon 267 | . . 85 . . 1 . 7 2 1 5 3 4 5 7 . 2 20 3 9 13 100 Launcher 145 | . 16 . . . 2 . 3 . . . 1 . . 6 . 2 . . . 2 113 Special 9 | . . . . . 5 . . . . 4 . . . . . . . . . . . Kinetic 232 | . 58 118 . . . . . . . . . . . . . . . . . . 56 Thermal 160 | 32 6 18 . . 1 . 7 2 1 5 3 4 5 7 . 2 20 3 9 13 22 Explosive 145 | . 16 . . . 2 . 3 . . . 1 . . 6 . 2 . . . 2 113 Electromagnetic 55 | 2 53 . . . . . . . . . . . . . . . . . . . . Entropic 22 | . . . . . . . . . . . . . . . . . . . . . 22 Robot Hit Streak 16 | 13 9 12 . . 4 . . . . 4 . . . 3 . . . . . . 16 Robot Miss Streak 5 | 3 5 2 . . 1 . . . . 1 . . . . . . . . . . 3 Penetration Max 1 | . . . . . . . . . . . . . . . . . . . . . 1 Secondary Targets . | . . . . . . . . . . . . . . . . . . . . . . Shots Hit Robots 333 | 22 72 66 . . 13 . 7 2 5 4 . 3 1 5 . . 17 11 14 11 80 Core Hits 356 | 8 54 20 . . 9 . 10 1 1 1 . 1 1 8 . 2 10 4 5 15 206 Critical Kills 14 | . . . . . . . . . . . . . . . . . . . . . 14 Critical Parts Destroyed 12 | . . . . . 2 . . . . . . . . . . . . . . . 10 Critical Strikes 46 | . . 2 . . 2 . 1 1 . . . . . . . . 1 1 1 1 36 Destroy 28 | . . . . . . . . . . . . . . . . . . . . . 28 Blast 2 | . . 2 . . . . . . . . . . . . . . . . . . . Smash 2 | . . . . . 2 . . . . . . . . . . . . . . . . Sever 1 | . . . . . . . . . . . . . . . . . . 1 . . . Impale 6 | . . . . . . . 1 1 . . . . . . . . 1 . 1 1 1 Sunder 7 | . . . . . . . . . . . . . . . . . . . . . 7 Melee Attacks 283 | . . . . . 43 . 20 6 6 6 5 21 2 11 . 5 53 24 27 27 27 Impact 47 | . . . . . 43 . 3 . 1 . . . . . . . . . . . . Slashing 89 | . . . . . . . . . . . . . . . . . 37 12 14 21 5 Piercing 147 | . . . . . . . 17 6 5 6 5 21 2 11 . 5 16 12 13 6 22 Sneak Attacks 67 | . . . . . 4 . 6 2 5 . . 1 1 3 . . 10 5 11 7 12 Combat Hostiles 1 | . . . . . . . . . . . . . . . . . 1 . . . . Follow-up Attacks 4 | . . . . . . . . . 1 . . . . . . . . 1 1 1 . Damage Inflicted 56650 | 250 1873 1229 29 . 1068 . 990 159 377 26 42 146 101 786 . 155 1286 812 1639 1702 43980 Guns 1529 | 250 908 371 . . . . . . . . . . . . . . . . . . . Cannons 3326 | . . 858 . . . . . . . 26 . . . . . . . . . . 2442 Explosions 43610 | . 965 . . . 571 . 409 . . . 42 . . 495 . 155 . . . 655 40318 Melee 7941 | . . . . . 497 . 581 159 377 . . 146 101 291 . . 1286 769 1467 1047 1220 Ramming 244 | . . . 29 . . . . . . . . . . . . . . 43 172 . . Kinetic 2328 | . 470 950 . . . . . . . . . . . . . . . . . . 908 Thermal 1236 | 223 164 279 . . . . . . . 26 . . . . . . . . . . 544 Explosive 43487 | . 842 . . . 571 . 409 . . . 42 . . 495 . 155 . . . 655 40318 Electromagnetic 424 | 27 397 . . . . . . . . . . . . . . . . . . . . Impact 613 | . . . . . 497 . . . 116 . . . . . . . . . . . . Slashing 3625 | . . . . . . . . . . . . . . . . . 984 425 1209 929 78 Piercing 3703 | . . . . . . . 581 159 261 . . 146 101 291 . . 302 344 258 118 1142 Entropic 990 | . . . . . . . . . . . . . . . . . . . . . 990 Highest Corruption 16 | . . . . . . 5 5 3 . . . . . . . . . 4 4 4 16 Average Corruption 7 | . . . . . . 5 3 1 . . . . . . . . . 3 4 4 9 Corruption Purged 5 | . . . . . . . 2 3 . . . . . . . . . . . . . Corruption Blocked . | . . . . . . . . . . . . . . . . . . . . . . Effects 112 | . . . . . . . 8 1 . . . . . . . . . 2 . 12 89 Message Errors 25 | . . . . . . . 1 1 . . . . . . . . . 2 . 1 20 Matter Fused 32 | . . . . . . . 2 . . . . . . . . . . . . 5 25 Heat Flow Errors 8 | . . . . . . . 1 . . . . . . . . . . . . 2 5 Energy Discharges 14 | . . . . . . . 3 . . . . . . . . . . . . 2 9 Parts Rejected 6 | . . . . . . . . . . . . . . . . . . . . . 6 Data Loss (minor) 13 | . . . . . . . 1 . . . . . . . . . . . . 2 10 Data Loss (major) 3 | . . . . . . . . . . . . . . . . . . . . . 3 Alerts 3 | . . . . . . . . . . . . . . . . . . . . . 3 Misdirections 5 | . . . . . . . . . . . . . . . . . . . . . 5 Weapon Failures 3 | . . . . . . . . . . . . . . . . . . . . . 3 Overload Shots . | . . . . . . . . . . . . . . . . . . . . . . Overflow Damage 6913 | . 44 . . . 376 . 63 57 259 . . 26 . 185 . 30 179 207 792 201 4494 Projectiles . | . . . . . . . . . . . . . . . . . . . . . . Explosions 4444 | . 44 . . . 84 . 16 . . . . . . 23 . 30 . . . 6 4241 Melee 2469 | . . . . . 292 . 47 57 259 . . 26 . 162 . . 179 207 792 195 253 Knockbacks 17 | . . 10 1 . 3 . . . . . . . . . . . . . 1 . 2 Impact 5 | . . . 1 . 3 . . . . . . . . . . . . . 1 . . Kinetic 12 | . . 10 . . . . . . . . . . . . . . . . . . 2 Secondary . | . . . . . . . . . . . . . . . . . . . . . . Self-Inflicted Damage 323 | . 68 . . . . . . . . . . . . . . 40 . 21 85 . 109 Shots 7 | . 4 . . . . . . . . . . . . . . 1 . . . . 2 Rammed 5 | . . . 2 . . . . . . . . . . . . . . 1 2 . . Targets Rammed 5 | . . . 2 . . . . . . . . . . . . . . 1 2 . . Kicked . | . . . . . . . . . . . . . . . . . . . . . . Crushed . | . . . . . . . . . . . . . . . . . . . . . . Highest Temperature 258 | 18 72 48 . . 20 . 144 108 54 171 61 100 160 110 . 72 200 198 258 189 215 Average Temperature 50 | 12 20 19 . . 10 . 54 61 13 55 28 38 54 38 . 37 64 27 110 88 79 Received Heat Transfer 729 | . 63 201 . . 66 . 18 . . 9 42 . . . . . 9 51 18 . 252 Siege Activations . | . . . . . . . . . . . . . . . . . . . . . . Martial Activations . | . . . . . . . . . . . . . . . . . . . . . . Shielding Activations . | . . . . . . . . . . . . . . . . . . . . . . Robots Disrupted . | . . . . . . . . . . . . . . . . . . . . . . Combat Hostiles . | . . . . . . . . . . . . . . . . . . . . . . Robots Corrupted 5 | . . . . . 4 . . . . . . . . . . . . . 1 . . Combat Hostiles . | . . . . . . . . . . . . . . . . . . . . . . Parts Fried 14 | . . . . . 8 . . . 2 . . . . . . . . . 4 . . Impact Corruptions 14 | . . . . . 10 . . . 1 . . . . . . . . . 3 . . Robots Melted . | . . . . . . . . . . . . . . . . . . . . . . Combat Hostiles . | . . . . . . . . . . . . . . . . . . . . . . Parts Melted 1 | 1 . . . . . . . . . . . . . . . . . . . . . Heat Transferred 1394 | 500 200 370 . . . . . . . 37 . . . . . . . . . . 287 Parts Sabotaged 2 | . . . . . . . . . . . . . . . . . . . . . 2 Parts Stolen . | . . . . . . . . . . . . . . . . . . . . . . Parts Stripped . | . . . . . . . . . . . . . . . . . . . . . . Power Chain Reactions 1 | . 1 . . . . . . . . . . . . . . . . . . . . Alert | -11 -10 -10 -7 -7 -5 -5 -5 -5 -5 -5 -4 -4 -4 -4 -4 -3 -3 -3 -2 -2 -2 ------- Run | Yrd Mat Sub Rec Scr Fac Was Fac Upp Upp War Pro Fac Upp Upp Zhi Pro Res Tes Res Qua Frg Maximum Alert Level 5 | . . . . . 1 . 1 . . . . . . . . . 1 . 1 1 5 Low Security (%) 64 | 100 100 . 100 . 96 100 36 . . . . 100 . . . . 68 100 88 61 . Level 1 11 | . . . . . 3 . 63 . . . . . . . . . 31 . 11 38 11 Level 2 1 | . . . . . . . . . . . . . . . . . . . . . 5 Level 3 . | . . . . . . . . . . . . . . . . . . . . . 1 Level 4 6 | . . . . . . . . . . . . . . . . . . . . . 23 Level 5 15 | . . . . . . . . . . . . . . . . . . . . . 56 High Security . | . . . . . . . . . . . . . . . . . . . . . . Max Security . | . . . . . . . . . . . . . . . . . . . . . . Peak Influence 4953 | 15 144 . 4 . 339 115 347 . . . . 70 . . . . 302 20 223 365 4953 Initial 300 | . . . 4 . . 115 73 . . . . 34 . . . . 300 1 11 66 178 Average 591 | 2 74 . . . 20 111 201 . . . . 22 . . . . 115 3 57 146 2001 Influence Increases 9751 | 40 670 125 . . 562 . 539 5 . 75 105 93 . 215 . 10 590 131 335 521 5735 Destroy 0b10 Robot/C 3500 | . 260 80 . . 100 . 80 . . . . . . 100 . . 20 20 . 80 2760 Destroy 0b10 Robot/NC 545 | 40 120 . . . 40 . 30 5 . . . 10 . . . 10 45 20 70 30 125 Destroy Leader 574 | . 80 . . . 18 . 10 . . . . . . 10 . . 16 2 4 12 422 Allied During Kill 72 | . . . . . . . . . . . . . . . . . . . . . 72 Successful Hack 215 | . 9 . . . 26 . 5 . . . . . . . . . 93 . . 18 64 Disable Machine 1185 | . 60 . . . 150 . 15 . . . . 30 . . . . . 45 . 75 810 Destroy Structure 1500 | . 96 . . . 78 . 54 . . . . 38 . . . . 86 14 51 261 822 Advance Influence 300 | . . . . . . . . . . . . . . . . . 300 . . . . Partial Spotted 345 | . . . . . 15 . 30 . . . . 15 . . . . 15 30 60 30 150 Lose Combat Pursuer 1515 | . 45 45 . . 135 . 315 . . 75 105 . . 105 . . 15 . 150 15 510 Influence Decreases 4802 | 40 567 217 11 . 233 224 366 174 91 93 50 148 . 215 . 10 587 114 237 321 1104 Entered New Map 671 | . . 51 7 . . 214 32 104 21 18 . 21 . . . . . 2 9 52 140 Time Decay 3243 | 40 567 146 4 . 213 10 214 70 70 75 50 127 . 215 . 10 337 112 118 211 654 Search Patrol Dispatched 300 | . . . . . . . 100 . . . . . . . . . 100 . 100 . . Lost Part 340 | . . 20 . . 20 . 20 . . . . . . . . . . . 10 . 270 Lost Ally 40 | . . . . . . . . . . . . . . . . . . . . . 40 Purge Threat 208 | . . . . . . . . . . . . . . . . . 150 . . 58 . Squads Dispatched 56 | . 4 . . . 9 . 6 . . . . 4 . . . . 8 2 5 3 15 Investigation 27 | . 1 . . . 5 . 4 . . . . 3 . . . . 4 . . . 10 Extermination 13 | . . . . . 3 . 1 . . . . 1 . . . . 2 2 1 2 1 Reinforcement 15 | . 3 . . . . . 1 . . . . . . . . . 2 . 4 1 4 Assault . | . . . . . . . . . . . . . . . . . . . . . . Garrison 1 | . . . . . 1 . . . . . . . . . . . . . . . . Intercept . | . . . . . . . . . . . . . . . . . . . . . . Searches Triggered 3 | . . . . . . . 1 . . . . . . . . . 1 . 1 . . Construction Impeded . | . . . . . . . . . . . . . . . . . . . . . . Haulers Reinforced 1 | . . . . . . . . . . . . . . . . . 1 . . . . Active Scanning Responses . | . . . . . . . . . . . . . . . . . . . . . . Cargo Convoy Interrupts . | . . . . . . . . . . . . . . . . . . . . . . Stealth | -11 -10 -10 -7 -7 -5 -5 -5 -5 -5 -5 -4 -4 -4 -4 -4 -3 -3 -3 -2 -2 -2 --------- Run | Yrd Mat Sub Rec Scr Fac Was Fac Upp Upp War Pro Fac Upp Upp Zhi Pro Res Tes Res Qua Frg Distress Signals 12 | . 4 . . . . . . . . 1 . . . . . . . . 1 1 5 Communications Jammed 35 | . . . . . . . . . . . . . . . . . . 5 3 4 23 Distress Signals 35 | . . . . . . . . . . . . . . . . . . 5 3 4 23 Times Spotted 495 | . 24 17 . . 23 4 23 . . 68 15 4 . 11 . 2 7 14 19 17 247 Peak Tracking Total 16 | . 5 4 . . 7 4 7 . . 9 9 1 . 4 . 2 3 4 10 7 16 Tactical Retreats 50 | . 2 1 . . 5 . 10 . . 1 3 . . 5 . . 1 . 3 1 18 Traps | -11 -10 -10 -7 -7 -5 -5 -5 -5 -5 -5 -4 -4 -4 -4 -4 -3 -3 -3 -2 -2 -2 ------- Run | Yrd Mat Sub Rec Scr Fac Was Fac Upp Upp War Pro Fac Upp Upp Zhi Pro Res Tes Res Qua Frg Traps Triggered 11 | . . 2 . . 1 . 1 . . . . . . . . . 1 2 2 . 2 Indirectly . | . . . . . . . . . . . . . . . . . . . . . . Trap Hack Attempts . | . . . . . . . . . . . . . . . . . . . . . . Triggered . | . . . . . . . . . . . . . . . . . . . . . . Disarmed . | . . . . . . . . . . . . . . . . . . . . . . Reprogrammed . | . . . . . . . . . . . . . . . . . . . . . . Reused . | . . . . . . . . . . . . . . . . . . . . . . Traps Extracted . | . . . . . . . . . . . . . . . . . . . . . . Installed . | . . . . . . . . . . . . . . . . . . . . . . Triggered . | . . . . . . . . . . . . . . . . . . . . . . Most Traps Carried 1 | . . 1 . . . . . . . . . . . . . . . . . . . Machines | -11 -10 -10 -7 -7 -5 -5 -5 -5 -5 -5 -4 -4 -4 -4 -4 -3 -3 -3 -2 -2 -2 ---------- Run | Yrd Mat Sub Rec Scr Fac Was Fac Upp Upp War Pro Fac Upp Upp Zhi Pro Res Tes Res Qua Frg Machines Disabled 86 | . 4 1 . . 10 . 1 . . 1 . 2 . . . . . 3 . 5 59 Max in Single Turn 11 | . 2 1 . . 6 . 1 . . 1 . 1 . . . . . 1 . 3 11 Garrison Access 6 | . . . . . 1 . . . . . . 1 . . . . 3 . . . 1 Machines Repaired . | . . . . . . . . . . . . . . . . . . . . . . Machines Dismantled 1 | . . . . . . . . . . 1 . . . . . . . . . . . Machines Sabotaged . | . . . . . . . . . . . . . . . . . . . . . . Overloaded Fab Kills . | . . . . . . . . . . . . . . . . . . . . . . Hacking | -11 -10 -10 -7 -7 -5 -5 -5 -5 -5 -5 -4 -4 -4 -4 -4 -3 -3 -3 -2 -2 -2 --------- Run | Yrd Mat Sub Rec Scr Fac Was Fac Upp Upp War Pro Fac Upp Upp Zhi Pro Res Tes Res Qua Frg Machines Accessed 77 | . 4 2 1 1 11 . 8 . 1 2 . 6 . . 4 . 16 4 2 4 11 Terminals 27 | . 4 . 1 . 3 . 3 . . . . 2 . . . . 6 2 2 2 2 Fabricators 10 | . . . . . 1 . 1 . . . . . . . . . 3 1 . . 4 Repair Stations 2 | . . . . . . . . . . . . . . . . . 1 . . 1 . Recycling Units 16 | . . . . . 5 . 4 . . . . 3 . . . . 1 . . . 3 Scanalyzers 5 | . . . . . 1 . . . . . . . . . . . 2 . . 1 1 Garrison Access 7 | . . . . . 1 . . . . . . 1 . . . . 3 1 . . 1 Total Hacks 186 | . 7 4 1 21 28 . 14 . 1 2 . 7 . . 17 . 41 11 2 10 20 Successful 145 | . 2 4 . 21 20 . 13 . 1 2 . 7 . . 17 . 30 6 1 7 14 Failed 41 | . 5 . 1 . 8 . 1 . . . . . . . . . 11 5 1 3 6 Catastrophic 10 | . 2 . . . 1 . . . . . . . . . . . 1 2 1 1 2 Database Lockouts . | . . . . . . . . . . . . . . . . . . . . . . Manual 57 | . 4 . . . 14 . 10 . . . . 4 . . . . 13 3 1 . 8 Terminals 62 | . 7 . 1 . 13 . 7 . . . . 3 . . . . 17 4 2 4 4 Fabricators 24 | . . . . . 1 . 1 . . . . . . . . . 8 5 . . 9 Repair Stations 5 | . . . . . . . . . . . . . . . . . 3 . . 2 . Recycling Units 20 | . . . . . 5 . 6 . . . . 3 . . . . 1 . . . 5 Scanalyzers 20 | . . . . . 8 . . . . . . . . . . . 7 . . 4 1 Garrison Access 10 | . . . . . 1 . . . . . . 1 . . . . 5 2 . . 1 Terminal Hacks 74 | . 2 4 . 21 5 . 4 . 1 2 . 3 . . 17 . 9 2 1 2 1 Record 29 | . . 3 . 21 . . . . . . . . . . 5 . . . . . . Part Schematic 4 | . . . . . . . . . . . . . . . 4 . . . . . . Robot Analysis 4 | . . . . . . . . . . . . . . . 4 . . . . . . Prototype ID Bank 4 | . . . . . . . . . . . . . . . 4 . . . . . . Open Door 4 | . . . . . . . . . 1 2 . . . . . . . . 1 . . Branch Access Points 3 | . . . . . . . 1 . . . . 1 . . . . 1 . . . . Recycling Unit Index 1 | . . . . . . . 1 . . . . . . . . . . . . . . Alert Level 1 | . . . . . . . . . . . . . . . . . 1 . . . . Unreport Threat 2 | . . . . . . . . . . . . . . . . . 1 . . 1 . Locate Traps 6 | . 1 . . . 1 . 1 . . . . 1 . . . . 2 . . . . Transport Status 1 | . . . . . 1 . . . . . . . . . . . . . . . . Recall Investigation 2 | . . . . . 2 . . . . . . . . . . . . . . . . Recall Extermination 3 | . . . . . . . . . . . . . . . . . 1 2 . . . Recall Reinforcements 3 | . . . . . . . . . . . . . . . . . 1 . . 1 1 Hauler Manifests 4 | . 1 . . . 1 . . . . . . 1 . . . . 1 . . . . Registered Prototypes 1 | . . . . . . . . . . . . . . . . . 1 . . . . Zone Layout 1 | . . . . . . . 1 . . . . . . . . . . . . . . Proto ID Catalog 1 | . . 1 . . . . . . . . . . . . . . . . . . . Fabricator Hacks 16 | . . . . . 1 . . . . . . . . . . . 4 4 . . 7 Network Status 2 | . . . . . 1 . . . . . . . . . . . 1 . . . . Load Schematic 9 | . . . . . . . . . . . . . . . . . 3 2 . . 4 Build 5 | . . . . . . . . . . . . . . . . . . 2 . . 3 Repair Station Hacks 4 | . . . . . . . . . . . . . . . . . 2 . . 2 . Scan Component 2 | . . . . . . . . . . . . . . . . . 1 . . 1 . Repair 2 | . . . . . . . . . . . . . . . . . 1 . . 1 . Recycling Unit Hacks 2 | . . . . . . . 2 . . . . . . . . . . . . . . Retrieve Components 2 | . . . . . . . 2 . . . . . . . . . . . . . . Scanalyzer 16 | . . . . . 6 . . . . . . . . . . . 6 . . 3 1 Insert Component 2 | . . . . . . . . . . . . . . . . . 1 . . 1 . Analyze 1 | . . . . . . . . . . . . . . . . . 1 . . . . Retrieve Study 13 | . . . . . 6 . . . . . . . . . . . 4 . . 2 1 Garrison Access Hacks 6 | . . . . . 1 . . . . . . 1 . . . . 3 . . . 1 Seal Access 6 | . . . . . 1 . . . . . . 1 . . . . 3 . . . 1 Unauthorized Hacks 27 | . . . . . 7 . 7 . . . . 3 . . . . 6 . . . 4 Terminals 8 | . . . . . 2 . 2 . . . . . . . . . 3 . . . 1 Track 1 | . . . . . . . 1 . . . . . . . . . . . . . . Botnet 7 | . . . . . 2 . 1 . . . . . . . . . 3 . . . 1 Fabricators 3 | . . . . . . . 1 . . . . . . . . . 2 . . . . Haulers 1 | . . . . . . . 1 . . . . . . . . . . . . . . Recompile 2 | . . . . . . . . . . . . . . . . . 2 . . . . Repair Stations . | . . . . . . . . . . . . . . . . . . . . . . Recycling Units 16 | . . . . . 5 . 4 . . . . 3 . . . . 1 . . . 3 Fedlink 14 | . . . . . 5 . 4 . . . . 3 . . . . 1 . . . 1 Scraphulk 2 | . . . . . . . . . . . . . . . . . . . . . 2 Scanalyzers . | . . . . . . . . . . . . . . . . . . . . . . Garrison Access . | . . . . . . . . . . . . . . . . . . . . . . Data Cores Recovered 1 | . . . . . . . . . . . . . . . . . . 1 . . . Used . | . . . . . . . . . . . . . . . . . . . . . . Hacking Detections 38 | . 4 . 1 . 4 . 4 . . . . 2 . . . . 10 3 1 2 7 Full Trace Events 5 | . . . . . . . . . . . . . . . . . 1 . . . 4 Feedback Events . | . . . . . . . . . . . . . . . . . . . . . . Feedback Blocked . | . . . . . . . . . . . . . . . . . . . . . . Robot Schematics Acquired . | . . . . . . . . . . . . . . . . . . . . . . Robots Built . | . . . . . . . . . . . . . . . . . . . . . . Authchips . | . . . . . . . . . . . . . . . . . . . . . . Time . | . . . . . . . . . . . . . . . . . . . . . . Total Robot Build Rating . | . . . . . . . . . . . . . . . . . . . . . . Part Schematics Acquired 5 | . . . . . . . . . . . . . . . 4 . 1 . . . . Parts Built 5 | . . . . . . . . . . . . . . . . . . 2 . . 3 Authchips 2 | . . . . . . . . . . . . . . . . . . 2 . . . Time 340 | . . . . . . . . . . . . . . . . . . 136 . . 204 Total Part Build Rating 40 | . . . . . . . . . . . . . . . . . . 16 . . 24 Part Studies Acquired 13 | . . . . . 6 . . . . . . . . . . . 4 . . 2 1 Parts Repaired 2 | . . . . . . . . . . . . . . . . . 1 . . 1 . Time 67 | . . . . . . . . . . . . . . . . . 45 . . 22 . Parts Recycled . | . . . . . . . . . . . . . . . . . . . . . . Recycled Matter . | . . . . . . . . . . . . . . . . . . . . . . Retrieved Matter . | . . . . . . . . . . . . . . . . . . . . . . Retrieved Components 3 | . . . . . . . 3 . . . . . . . . . . . . . . Parts Scanalyzed 1 | . . . . . . . . . . . . . . . . . 1 . . . . Part Schematics Acquired 1 | . . . . . . . . . . . . . . . . . 1 . . . . Parts Damaged 1 | . . . . . . . . . . . . . . . . . 1 . . . . Bothacking | -11 -10 -10 -7 -7 -5 -5 -5 -5 -5 -5 -4 -4 -4 -4 -4 -3 -3 -3 -2 -2 -2 ------------ Run | Yrd Mat Sub Rec Scr Fac Was Fac Upp Upp War Pro Fac Upp Upp Zhi Pro Res Tes Res Qua Frg Used RIF Installer . | . . . . . . . . . . . . . . . . . . . . . . Robots Hacked 3 | . . . . . 3 . . . . . . . . . . . . . . . . Non-combat 3 | . . . . . 3 . . . . . . . . . . . . . . . . Combat . | . . . . . . . . . . . . . . . . . . . . . . Robot Hacks Applied 4 | . . . . . 4 . . . . . . . . . . . . . . . . no_distress 2 | . . . . . 2 . . . . . . . . . . . . . . . . find_chute 1 | . . . . . 1 . . . . . . . . . . . . . . . . find_fabricator 1 | . . . . . 1 . . . . . . . . . . . . . . . . Relay Couplers Released . | . . . . . . . . . . . . . . . . . . . . . . Fabnet Peak Effective % . | . . . . . . . . . . . . . . . . . . . . . . Robots Rewired . | . . . . . . . . . . . . . . . . . . . . . . Allies Hacked . | . . . . . . . . . . . . . . . . . . . . . . Hacks Repelled . | . . . . . . . . . . . . . . . . . . . . . . Allies | -11 -10 -10 -7 -7 -5 -5 -5 -5 -5 -5 -4 -4 -4 -4 -4 -3 -3 -3 -2 -2 -2 -------- Run | Yrd Mat Sub Rec Scr Fac Was Fac Upp Upp War Pro Fac Upp Upp Zhi Pro Res Tes Res Qua Frg Total Allies 2 | . . . . . . . . . . . . . . . . . . . . . 2 Largest Group 2 | . . . . . . . . . . . . . . . . . . . . . 2 Highest-Rated Group 278 | . . . . . . . . . . . . . . . . . . . . . 278 Highest-Rated Ally 139 | . . . . . . . . . . . . . . . . . . . . . 139 Initial UFD Resources 102 | . . . . . 39 59 59 67 67 67 69 69 85 85 85 89 89 99 102 102 102 Total Orders 3 | . . . . . . . . . . . . . . . . . . . . . 3 STAY 2 | . . . . . . . . . . . . . . . . . . . . . 2 FOLLOW 1 | . . . . . . . . . . . . . . . . . . . . . 1 Ally Attacks 44 | . . . . . . . . . . . . . . . . . . . . . 44 Total Damage 2128 | . . . . . . . . . . . . . . . . . . . . . 2128 Kills 14 | . . . . . . . . . . . . . . . . . . . . . 14 Allies Corrupted . | . . . . . . . . . . . . . . . . . . . . . . Allies Melted 4 | . . . . . . . . . . 1 . . . . . . . . . . 3 Intel | -11 -10 -10 -7 -7 -5 -5 -5 -5 -5 -5 -4 -4 -4 -4 -4 -3 -3 -3 -2 -2 -2 ------- Run | Yrd Mat Sub Rec Scr Fac Was Fac Upp Upp War Pro Fac Upp Upp Zhi Pro Res Tes Res Qua Frg Active Infowar (turns) 21465 | 54 2319 5498 358 5092 778 29 374 143 140 424 244 374 113 592 83 320 784 552 263 498 2433 Optics 6536 | . . . . . . . . . . 280 244 374 113 592 83 320 784 552 263 498 2433 Sensors 5612 | . . . . . 698 . 241 142 140 96 . 313 113 580 83 320 784 550 263 498 791 A.S.S. 1186 | . . . . . . . . . . . . . . . . . . . . . 1186 Structural 5560 | . . . . 21 747 29 302 116 124 88 . 371 113 545 4 305 784 552 263 498 698 Seismic 14162 | 54 2319 5498 358 5071 209 . 337 143 140 33 . . . . . . . . . . . Jamming 1697 | . . . . . . . . 1 . . . . . . . . . 333 263 498 602 Robot Analysis Total 4 | . . . . . . . . . . . . . . . 4 . . . . . . Derelict Logs Recovered 7 | . . 1 . 2 . . . . 2 . . . 1 1 . . . . . . . Drone Launches . | . . . . . . . . . . . . . . . . . . . . . . Drone Recoveries . | . . . . . . . . . . . . . . . . . . . . . . Exploration | -11 -10 -10 -7 -7 -5 -5 -5 -5 -5 -5 -4 -4 -4 -4 -4 -3 -3 -3 -2 -2 -2 ------------- Run | Yrd Mat Sub Rec Scr Fac Was Fac Upp Upp War Pro Fac Upp Upp Zhi Pro Res Tes Res Qua Frg Turns Passed 23196 | 196 2319 6288 358 5395 778 29 454 143 140 841 244 374 113 592 83 320 784 552 263 498 2432 Spaces Moved 19827 | 77 815 1827 142 2454 1380 73 816 214 289 927 392 765 240 727 142 624 1184 1255 648 1086 3750 Core 402 | 5 . . . 397 . . . . . . . . . . . . . . . . . Treads 4913 | 72 815 1827 142 2057 . . . . . . . . . . . . . . . . . Legs . | . . . . . . . . . . . . . . . . . . . . . . Wheels . | . . . . . . . . . . . . . . . . . . . . . . Hover 7213 | . . . . . . . . . . . . . . . . . 474 1255 648 1086 3750 Flight 7299 | . . . . . 1380 73 816 214 289 927 392 765 240 727 142 624 710 . . . . Fastest Speed 14 | 50 160 240 250 50 39 39 37 34 34 34 37 37 37 37 37 37 30 16 16 15 14 Average Speed 83 | 152 201 246 250 216 39 39 38 35 34 35 37 37 37 37 37 37 33 24 23 23 29 Slowest Speed 250 | 160 240 250 250 250 40 39 39 37 34 37 37 37 37 37 37 37 37 30 89 89 108 Overloaded Moves 583 | . . . . . . . . . . . . . . . . . . 15 77 92 399 Propulsion Burnouts 1 | . . . . . . . . . . . . . . . . . . . . . 1 Robots Hopped 4 | . . . . . 2 . 1 . . . . . . . . . 1 . . . . Potential Cave-ins 2 | . . . . . . . . . . . . . . . . . 2 . . . . Cave-ins Triggered . | . . . . . . . . . . . . . . . . . . . . . . Teleports 1 | . . . . . . . . . . . . . . . . . . . . . 1 Exploration Rate (%) 59 | 4 97 93 40 88 37 64 27 50 49 70 47 26 58 85 61 67 50 92 28 95 74 Regions Visited 21 Branch Regions 14 Pre-discovered Areas 12 | . . 2 . 4 1 . . . . . . . 1 1 3 . . . . . . Known Exits Taken 14 | . . . . . . . 1 1 1 1 1 1 1 1 1 1 1 1 1 1 . Unknown Exits Taken 5 | 1 1 1 1 1 . . . . . . . . . . . . . . . . . Scrap Searched 22 | . . 12 . 1 . . . . . . 1 . . 3 . 5 . . . . . Spaces Dug 349 | . 35 2 . . 32 . 16 5 2 10 8 20 4 64 . 25 47 8 15 22 34 Terrain Destroyed 857 | . 92 5 . . 45 . 28 5 2 10 12 20 6 96 . 42 48 8 18 109 311 Melee 143 | . . . . . 32 . 12 3 1 6 5 16 1 7 . 3 28 5 9 9 6 Projectile 110 | . . 5 . . . . 7 2 1 4 3 4 5 6 . 2 20 3 9 13 26 AOE 604 | . 92 . . . 13 . 9 . . . 4 . . 83 . 37 . . . 87 279 Terrain Rammed . | . . . . . . . . . . . . . . . . . . . . . . Walls Destroyed . | . . . . . . . . . . . . . . . . . . . . . . Machines Disabled . | . . . . . . . . . . . . . . . . . . . . . . Actions | -11 -10 -10 -7 -7 -5 -5 -5 -5 -5 -5 -4 -4 -4 -4 -4 -3 -3 -3 -2 -2 -2 --------- Run | Yrd Mat Sub Rec Scr Fac Was Fac Upp Upp War Pro Fac Upp Upp Zhi Pro Res Tes Res Qua Frg Total 25224 | 118 1356 3468 143 2546 1524 72 900 266 320 1406 477 820 255 1015 169 697 1469 1464 711 1268 4760 Wait 3955 | 1 438 1507 . 31 59 . 37 41 23 417 75 19 9 259 12 56 155 147 8 118 543 Move 19796 | 76 814 1826 141 2453 1376 72 813 213 288 926 391 764 239 726 141 623 1181 1254 647 1083 3749 Hop 4 | . . . . . 2 . 1 . . . . . . . . . 1 . . . . Pick Up 141 | 2 12 12 . 28 9 . 1 . 1 8 . 4 . . 3 . 11 6 3 5 36 Fast Attach 71 | 7 . 1 . 6 6 . 5 . . . . . . . 1 1 4 3 7 1 29 Attach 64 | . . 4 . 2 5 . 2 1 . 6 . 3 . . . 1 6 3 2 1 28 Detach 16 | . . . . . . . 1 . . 1 . 1 . . . 1 . 1 . . 11 Swap 223 | . 11 27 . 6 5 . 10 2 2 19 2 2 . 6 9 6 18 17 8 16 57 Drop 108 | . 1 9 . 20 11 . . 1 . 6 . 2 . . 3 . 10 6 3 4 32 Fire 517 | 32 80 82 . . 8 . 10 2 1 9 4 4 5 13 . 4 20 3 9 15 216 Melee 265 | . . . . . 43 . 20 6 5 6 5 21 2 11 . 5 48 21 22 23 27 Ram 3 | . . . . . . . . . . . . . . . . . . 1 2 . . Kick . | . . . . . . . . . . . . . . . . . . . . . . Crush 2 | . . . 2 . . . . . . . . . . . . . . . . . . Escape Stasis 20 | . . . . . . . . . . . . . . . . . 15 2 . 2 1 Rewire 1 | . . . . . . . . . . . . . . . . . . . . . 1 Trap . | . . . . . . . . . . . . . . . . . . . . . . Miscellaneous 38 | . . . . . . . . . . 8 . . . . . . . . . . 30 Route ------- -11/Scrapyard -10/Materials (discovered 5 exits: [*Mat x3] / [*Min] / *Sub) -10/Subcaves (discovered 3 exits: [*Mat x2] / *Rec) -7/Recycling -7/Scraptown (discovered 2 exits: *Fac x2) -5/Factory (discovered 4 exits: *Fac x2 / Upp x2) -5/Waste -5/Factory (discovered 3 exits: *Fac / *Upp x2) -5/Upper Caves -5/Upper Caves (discovered 2 exits: Fac / *War) -5/Warlord -4/Proximity Caves -4/Factory (discovered 4 exits: Res x2 / *Upp x2) -4/Upper Caves -4/Upper Caves (discovered 2 exits: *Res / *Zhi) -4/Zhirov -3/Proximity Caves -3/Research (discovered 3 exits: Arm / *Tes x2) -3/Testing -2/Research -2/Quarantine (discovered 3 exits: *Acc / *Sec / *Frg) -2/Protoforge 0bPrime History --------- Turn | Location | Event 3 | -11/Scrapyard | Discovered new exit (range 15) 197 | -11/Scrapyard | Entered Materials 284 | -10/Materials | Discovered new exit (range 12) 312 | -10/Materials | Build established: Mutant 443 | -10/Materials | Discovered new exit (range 16) 1209 | -10/Materials | Discovered new exit (range 9) 1443 | -10/Materials | Discovered new exit (range 10) 1742 | -10/Materials | Discovered new exit (range 11) 2516 | -10/Materials | Entered Subcaves 2567 | -10/Subcaves | Shifting Twisted Machinery released Battle Cannon 2582 | -10/Subcaves | Shifting Twisted Machinery released Piercing Trap 2654 | -10/Subcaves | Learned location of Zion (-6) 2654 | -10/Subcaves | Met a Zionite searching for "candidates" 2996 | -10/Subcaves | Discovered new exit (range 16) 3586 | -10/Subcaves | A swath of the cavern ceiling suddenly collapsed 4237 | -10/Subcaves | Learned Materials garrison access intel 4562 | -10/Subcaves | Discovered new exit (range 14) 4905 | -10/Subcaves | A swath of the cavern ceiling suddenly collapsed 5058 | -10/Subcaves | Visited Clippyterm 5065 | -10/Subcaves | Learned location of Extension (-6) 6997 | -10/Subcaves | Core integrity fell below 50% 8246 | -10/Subcaves | Visited 4L-MR0's lab 8277 | -10/Subcaves | Found Flightbrick 8800 | -10/Subcaves | Discovered new exit (range 2) 8804 | -10/Subcaves | Entered Recycling 9104 | -7/Recycling | Scanned before Scraplab entrance 9139 | -7/Recycling | Entered Scraplab 9159 | -7/Recycling | Discovered new exit (range 2) 9162 | -7/Recycling | Entered Scraptown 9530 | -7/Scraptown | Visited Junk Repository 9631 | -7/Scraptown | Visited Spacefarers 9734 | -7/Scraptown | Visited The Evicted 9759 | -7/Scraptown | Visited CR-KLE's Repair Center 9789 | -7/Scraptown | Visited Comm Corps 9939 | -7/Scraptown | Visited Assassins FH 10331 | -7/Scraptown | Visited UFD Registry 10331 | -7/Scraptown | Registered with UFD as "Zeronuts" 10391 | -7/Scraptown | Visited Scrap Suit Storage 10426 | -7/Scraptown | Visited Derelict Rescue Squad 10486 | -7/Scraptown | Visited Observation Area 10601 | -7/Scraptown | Visited Botcube Research 10883 | -7/Scraptown | Visited Scrapoid Pod Storage 10916 | -7/Scraptown | Visited A0-MCA Data Center 10958 | -7/Scraptown | Visited Junk Repository 11028 | -7/Scraptown | Visited Junk Cannon Lab 11071 | -7/Scraptown | Visited Curators Association 11189 | -7/Scraptown | Visited Cartography Club 11254 | -7/Scraptown | Learned location of Upper Caves (-4) 11254 | -7/Scraptown | Learned 12 Materials zone layouts 11254 | -7/Scraptown | Learned 4 Access zone layouts 11254 | -7/Scraptown | Learned 4 Recycling zone layouts 11254 | -7/Scraptown | Learned 8 Lower Caves zone layouts 11254 | -7/Scraptown | Learned 8 Upper Caves zone layouts 11254 | -7/Scraptown | Learned 16 Upper Caves zone layouts 11254 | -7/Scraptown | Learned 16 Proximity Caves zone layouts 11254 | -7/Scraptown | Learned Storage emergency access door positions 11254 | -7/Scraptown | Learned location of 1 exit from Lower Caves 11254 | -7/Scraptown | Learned location of 1 exit from Proximity Caves 11254 | -7/Scraptown | Learned 4 Mines zone layouts 11254 | -7/Scraptown | Learned 16 Factory zone layouts 11254 | -7/Scraptown | Learned 12 Proximity Caves zone layouts 11360 | -7/Scraptown | Found Deep Structural Scanner 11959 | -7/Scraptown | Scanned Subdweller tech in exchange for log data 11966 | -7/Scraptown | Learned 12 Research zone layouts 11969 | -7/Scraptown | Learned Factory emergency access door positions 13565 | -7/Scraptown | Discovered new exit (range 13) 14139 | -7/Scraptown | CR-KLE repaired 7 parts 14432 | -7/Scraptown | Met Optimus 14432 | -7/Scraptown | Accepted into 0bPrime 14552 | -7/Scraptown | Discovered new exit (range 3) 14557 | -7/Scraptown | Entered Factory 14557 | -5/Factory | Evolved 10 slots: Power x1, Propulsion x5, Utility x4 14558 | -5/Factory | Identified exit to Upper Caves 14563 | -5/Factory | Attached Flightbrick, gained temporary slots: Utility x3 14851 | -5/Factory | Loaded intel: 8 recycling unit locations 14869 | -5/Factory | Build established: Hacker-Scout 14907 | -5/Factory | Learned location of Protoforge (-2) 14979 | -5/Factory | Discovered new exit (range 8) 14981 | -5/Factory | Identified exit to Factory 14999 | -5/Factory | Discovered exit to Factory (range 12) 15265 | -5/Factory | Discovered exit to Upper Caves (range 16) 15271 | -5/Factory | Spotted B-75 Beast 15335 | -5/Factory | Manually triggered Chute Trap 15335 | -5/Factory | Sucked down chute 15335 | -5/Factory | Entered Waste 15340 | -5/Waste | Spotted C-40 Crusher 15342 | -5/Waste | Spotted C-40 Crusher 15344 | -5/Waste | Spotted C-40 Crusher 15350 | -5/Waste | EMP discharged 15350 | -5/Waste | Spotted C-40 Crusher 15358 | -5/Waste | Discovered new exit (range 16) 15363 | -5/Waste | Identified exit to Factory 15364 | -5/Waste | Entered Factory 15664 | -5/Factory | Search patrols dispatched 15668 | -5/Factory | Loaded intel: 8 recycling unit locations 15671 | -5/Factory | Discovered exit to Factory (range 16) 15818 | -5/Factory | Entered Upper Caves 15819 | -5/Upper Caves | Identified exit to Upper Caves 15826 | -5/Upper Caves | Encountered a Warlord checkpoint 15961 | -5/Upper Caves | Entered another Upper Caves area 16099 | -5/Upper Caves | Learned 4 Factory zone layouts 16099 | -5/Upper Caves | Discovered new exit (range 10) 16101 | -5/Upper Caves | Identified exit to Warlord 16101 | -5/Upper Caves | Entered Warlord 16102 | -5/Warlord | Identified exit to Proximity Caves 16161 | -5/Warlord | Found Prototype Device 16161 | -5/Warlord | Identified Exp. Phase Shifter 16174 | -5/Warlord | Found Prototype Hackware 16174 | -5/Warlord | Identified System Mapper 16184 | -5/Warlord | Visited the Vortex Lab 16186 | -5/Warlord | Found Prototype Energy Cannon 16186 | -5/Warlord | Identified Vortex Driver 16187 | -5/Warlord | Warlord's base attacked by MAIN.C 16435 | -5/Warlord | P-80 Master assimilated allied BG-O7P(Y) 16468 | -5/Warlord | Lost 3 allies 16537 | -5/Warlord | Warlord forces counterattacked 16583 | -5/Warlord | Spotted Executioner 16592 | -5/Warlord | Attached CPS modules to Executioner. 16621 | -5/Warlord | Spotted Striker 16623 | -5/Warlord | Spotted Striker 16626 | -5/Warlord | Attached CPS modules to Striker. 16711 | -5/Warlord | Found Prototype Device 16711 | -5/Warlord | Identified Minesniffer Drone Bay 16732 | -5/Warlord | Opened side exit 16735 | -5/Warlord | Lost 26 allies 16788 | -5/Warlord | Spotted Striker 16789 | -5/Warlord | Spotted B-86 Titan 16862 | -5/Warlord | Warlord base infiltrated, sounded retreat 16866 | -5/Warlord | Build established: Hacker-Mutant 16885 | -5/Warlord | Spotted Executioner 16889 | -5/Warlord | Rebuked by Warlord 16910 | -5/Warlord | Spotted Striker 16911 | -5/Warlord | Spotted Striker 16912 | -5/Warlord | Found Prototype Processor 16912 | -5/Warlord | Identified Exp. Core Analyzer 16917 | -5/Warlord | Lost 5 allies 16942 | -5/Warlord | Entered Proximity Caves 17131 | -4/Proximity Caves | Attracted the attention of an 0b10 checkpoint 17186 | -4/Proximity Caves | Entered Factory 17186 | -4/Factory | Evolved 2 slots: Utility x2 17187 | -4/Factory | Identified exit to Research 17280 | -4/Factory | Identified exit to Upper Caves 17287 | -4/Factory | Loaded intel: 8 recycling unit locations 17536 | -4/Factory | Build established: Hacker-Scout 17560 | -4/Factory | Entered Upper Caves 17626 | -4/Upper Caves | Learned location of Quarantine (-2) 17649 | -4/Upper Caves | Encountered a Warlord checkpoint 17671 | -4/Upper Caves | Discovered new exit (range 8) 17673 | -4/Upper Caves | Identified exit to Upper Caves 17673 | -4/Upper Caves | Entered another Upper Caves area 17691 | -4/Upper Caves | Spotted B-86 Titan 17803 | -4/Upper Caves | Discovered exit to Research (range 18) 17876 | -4/Upper Caves | Attracted the attention of an 0b10 checkpoint 18222 | -4/Upper Caves | Discovered new exit (range 20) 18264 | -4/Upper Caves | Identified exit to Zhirov 18265 | -4/Upper Caves | Entered Zhirov 18265 | -4/Zhirov | Discovered new exit (range 3) 18273 | -4/Zhirov | Met Zhirov 18281 | -4/Zhirov | Found Alien Artifact 18281 | -4/Zhirov | Identified Integrated Reactor 18281 | -4/Zhirov | Installed Integrated Reactor, increased core energy generation (+10) 18326 | -4/Zhirov | Found Alien Artifact 18334 | -4/Zhirov | Learned location of Testing (-3) 18334 | -4/Zhirov | Learned location of Command (-1) 18338 | -4/Zhirov | Zhirov requested help retrieving the SGEMP Prototype 18348 | -4/Zhirov | Identified exit to Proximity Caves 18348 | -4/Zhirov | Entered Proximity Caves 18350 | -3/Proximity Caves | Spotter reported a threat 18351 | -3/Proximity Caves | Spotter reported a threat 18634 | -3/Proximity Caves | Discovered exit to Research (range 19) 18668 | -3/Proximity Caves | Entered Research 18668 | -3/Research | Evolved 2 slots: Utility x2 18733 | -3/Research | Loaded intel: 5 recycling unit locations 18811 | -3/Research | Spotted B-86 Titan 18918 | -3/Research | Search patrols dispatched 18918 | -3/Research | Identified exit to Armory 18918 | -3/Research | Identified exit to Testing 18975 | -3/Research | Repaired Broken Cld. Antigrav System 19062 | -3/Research | Found Prototype Launcher 19062 | -3/Research | Identified Tactical Quantum Warhead 19338 | -3/Research | Spotted B-86 Titan 19452 | -3/Research | Entered Testing 19458 | -3/Testing | Watched by a mysterious "MATRIX" hacker. 19526 | -3/Testing | Fabricated Cld. Antigrav System (x1) 19600 | -3/Testing | Fabricated Cld. Antigrav System (x1) 19652 | -3/Testing | Found Powered Armor 19703 | -3/Testing | Found Prototype Energy Cannon 19703 | -3/Testing | Identified Null Cannon 19711 | -3/Testing | Found Prototype Device 19711 | -3/Testing | Identified Adv. EM Shield 19726 | -3/Testing | Discovered new exit (range 16) 19940 | -3/Testing | Build established: Hacker-Ninja 19975 | -3/Testing | Identified exit to Research 20004 | -3/Testing | Entered Research 20004 | -2/Research | Evolved 2 slots: Utility x2 20043 | -2/Research | Found Exp. Core Analyzer 20205 | -2/Research | Spotted B-90 Cyclops 20254 | -2/Research | Search patrols dispatched 20265 | -2/Research | Discovered new exit (range 9) 20267 | -2/Research | Identified exit to Quarantine 20267 | -2/Research | Entered Quarantine 20365 | -2/Quarantine | Found Alien Artifact 20366 | -2/Quarantine | Identified Subatomic Replicator 20366 | -2/Quarantine | Used Subatomic Replicator to create Alien Artifact 20493 | -2/Quarantine | Found Alien Artifact 20518 | -2/Quarantine | Identified Phase Redirector 20543 | -2/Quarantine | Discovered new exit (range 17) 20620 | -2/Quarantine | Repaired Powered Armor 20748 | -2/Quarantine | Spotted Fortress 20763 | -2/Quarantine | Discovered new exit (range 6) 20763 | -2/Quarantine | Discovered new exit (range 7) 20764 | -2/Quarantine | Identified exit to Section 7 20764 | -2/Quarantine | Identified exit to Protoforge 20765 | -2/Quarantine | Entered Protoforge 20830 | -2/Protoforge | Superfortress began startup sequence 20832 | -2/Protoforge | Discovered new exit (range 21) 20898 | -2/Protoforge | Spotted Overlord 20898 | -2/Protoforge | Spotted Hotshot 20898 | -2/Protoforge | Spotted Hotshot 20901 | -2/Protoforge | Spotted AP7-3 20901 | -2/Protoforge | Spotted AP7-3 20914 | -2/Protoforge | Spotted EXE-6 20914 | -2/Protoforge | Spotted EXE-6 20915 | -2/Protoforge | Spotted SKR-2 20915 | -2/Protoforge | Spotted SKR-2 20916 | -2/Protoforge | Spotted SKR-2 20926 | -2/Protoforge | UFD initiated attack on Protoforge (Readiness: High) 20926 | -2/Protoforge | Loaded intel: 3 recycling unit locations 20944 | -2/Protoforge | Spotted EXE-6 20944 | -2/Protoforge | Spotted EXE-6 20953 | -2/Protoforge | Scraphulk reinforcements arrived? 20953 | -2/Protoforge | Scraphulk reinforcements arrived? 20962 | -2/Protoforge | Optimus greeted in Protoforge 20970 | -2/Protoforge | Found Prototype Processor 20970 | -2/Protoforge | Identified Exp. Armor Integrity Analyzer 20989 | -2/Protoforge | Lost 3 allies 21020 | -2/Protoforge | Found Exp. Core Analyzer 21083 | -2/Protoforge | Forge Plexus network access discovered 21096 | -2/Protoforge | Spotted Decapitator 21099 | -2/Protoforge | Spotted Decapitator 21099 | -2/Protoforge | Spotted Decapitator 21116 | -2/Protoforge | UFD reported confirmed Drillbomb installation 21117 | -2/Protoforge | Lost 3 allies 21129 | -2/Protoforge | UFD reported confirmed Drillbomb installation 21174 | -2/Protoforge | Fabricated Cld. Antigrav System (x1) 21178 | -2/Protoforge | Fabricated Cld. Antigrav System (x1) 21179 | -2/Protoforge | Fabricated Cld. Antigrav System (x1) 21235 | -2/Protoforge | Spotted Executioner 21236 | -2/Protoforge | Allies destroyed Executioner 21292 | -2/Protoforge | Spotted Executioner 21310 | -2/Protoforge | Allies destroyed Executioner 21317 | -2/Protoforge | Spotted Executioner 21334 | -2/Protoforge | Spotted Striker 21336 | -2/Protoforge | Spotted Striker 21353 | -2/Protoforge | Spotted Executioner 21410 | -2/Protoforge | Spotted Striker 21459 | -2/Protoforge | Spotted Executioner 21468 | -2/Protoforge | Build established: Hacker-Scout 21469 | -2/Protoforge | Spotted Executioner 21469 | -2/Protoforge | Spotted Executioner 21471 | -2/Protoforge | Found Cep. NT7 Matterbank 21472 | -2/Protoforge | Found Cep. NT7 Matterbank 21476 | -2/Protoforge | Identified Supercharged TR 21476 | -2/Protoforge | Warped through subspace 21492 | -2/Protoforge | Lost 3 allies 21526 | -2/Protoforge | Lost 10 parts (2p3n5u) 21539 | -2/Protoforge | Spotted Immortal 21551 | -2/Protoforge | Spotted Hotshot 21558 | -2/Protoforge | Spotted Striker 21577 | -2/Protoforge | Spotted Decapitator 21583 | -2/Protoforge | Spotted Striker 21584 | -2/Protoforge | Spotted Immortal 21588 | -2/Protoforge | Optimus attacked Superfortress 21590 | -2/Protoforge | Spotted Immortal 21593 | -2/Protoforge | Destroyed Striker 21608 | -2/Protoforge | Spotted Hotshot 21622 | -2/Protoforge | Destroyed Executioner 21636 | -2/Protoforge | Spotted Executioner 21638 | -2/Protoforge | Spotted Executioner 21659 | -2/Protoforge | Found Prototype Processor 21659 | -2/Protoforge | Identified Exp. Targeting Computer 21663 | -2/Protoforge | Found Prototype Device 21665 | -2/Protoforge | Identified Adv. Kinecellerator 21668 | -2/Protoforge | Spotted Executioner 21669 | -2/Protoforge | Spotted Striker 21679 | -2/Protoforge | Lost 22 allies 21691 | -2/Protoforge | Spotted Executioner 21702 | -2/Protoforge | P-80 Master assimilated allied 02F62-D 21704 | -2/Protoforge | P-80 Master assimilated allied 02F57-D 21705 | -2/Protoforge | Spotted Executioner 21706 | -2/Protoforge | Destroyed Executioner 21708 | -2/Protoforge | Destroyed Executioner 21709 | -2/Protoforge | Spotted EXE-6 21727 | -2/Protoforge | Spotted Executioner 21729 | -2/Protoforge | Spotted Hotshot 21729 | -2/Protoforge | Spotted Hotshot 21729 | -2/Protoforge | Spotted Hotshot 21730 | -2/Protoforge | Spotted Hotshot 21730 | -2/Protoforge | Spotted Executioner 21731 | -2/Protoforge | Spotted Executioner 21745 | -2/Protoforge | Lost 4 allies 21755 | -2/Protoforge | Spotted Immortal 21785 | -2/Protoforge | Destroyed Hotshot 21795 | -2/Protoforge | Found Crosscalibrator 21803 | -2/Protoforge | Destroyed Hotshot 21809 | -2/Protoforge | Destroyed Hotshot 21811 | -2/Protoforge | System corruption reached 10% 21820 | -2/Protoforge | Core integrity fell below 50% 21820 | -2/Protoforge | Destroyed Executioner 21820 | -2/Protoforge | Destroyed Hotshot 21834 | -2/Protoforge | Destroyed Executioner 21837 | -2/Protoforge | Destroyed Executioner 21859 | -2/Protoforge | Lost 6 parts (3n2u1w) 21872 | -2/Protoforge | Destroyed 15 combat bots 21878 | -2/Protoforge | Spotted V492-f 21878 | -2/Protoforge | Spotted V350-q 21878 | -2/Protoforge | Spotted V035-m 21878 | -2/Protoforge | Spotted V932-d 21902 | -2/Protoforge | Spotted Decapitator 21907 | -2/Protoforge | Destroyed Decapitator 21990 | -2/Protoforge | Found Exp. Active Sensor Suite 22031 | -2/Protoforge | Found Cep. Networked Targeting System 22034 | -2/Protoforge | Found Exp. Kinecellerator 22036 | -2/Protoforge | Found Cep. Weapon Articulator 22068 | -2/Protoforge | Destroyed Decapitator 22068 | -2/Protoforge | Spotted Decapitator 22068 | -2/Protoforge | Spotted Decapitator 22082 | -2/Protoforge | Destroyed Decapitator 22086 | -2/Protoforge | Destroyed Decapitator 22107 | -2/Protoforge | Spotted V035-k 22107 | -2/Protoforge | Spotted V403-f 22114 | -2/Protoforge | Found Cep. Smart ZDS 22117 | -2/Protoforge | Found Cep. Rapid Grenade Launcher 22166 | -2/Protoforge | Spotted Hotshot 22176 | -2/Protoforge | Destroyed Hotshot 22179 | -2/Protoforge | Spotted Hotshot 22179 | -2/Protoforge | Spotted Decapitator 22179 | -2/Protoforge | Spotted Decapitator 22184 | -2/Protoforge | Destroyed Decapitator 22187 | -2/Protoforge | Destroyed Decapitator 22195 | -2/Protoforge | Destroyed Hotshot 22218 | -2/Protoforge | UFD reported confirmed Drillbomb installation 22225 | -2/Protoforge | Found Cep. Antigrav Storage Unit 22237 | -2/Protoforge | Spotted V687-c 22237 | -2/Protoforge | Found Cep. Matter Streamer 22243 | -2/Protoforge | Found Cep. Chromion Battery 22247 | -2/Protoforge | Found Cep. NT7 Matterbank 22270 | -2/Protoforge | UFD reported confirmed Drillbomb installation 22295 | -2/Protoforge | Found Cep. Zero-point Core 22297 | -2/Protoforge | Spotted V323-y 22300 | -2/Protoforge | Spotted V163-z 22300 | -2/Protoforge | Spotted V111-l 22301 | -2/Protoforge | Found Faulty Cep. Zero-point Core 22322 | -2/Protoforge | Spotted Striker 22323 | -2/Protoforge | Spotted Striker 22328 | -2/Protoforge | UFD reported confirmed Drillbomb installation 22331 | -2/Protoforge | Found Cep. NT7 Matterbank 22333 | -2/Protoforge | Found Cep. NT7 Matterbank 22412 | -2/Protoforge | Spotted Decapitator 22412 | -2/Protoforge | Spotted Decapitator 22412 | -2/Protoforge | Spotted Decapitator 22413 | -2/Protoforge | Spotted Striker 22416 | -2/Protoforge | Spotted Striker 22428 | -2/Protoforge | Destroyed Striker 22450 | -2/Protoforge | Lost 3 allies 22469 | -2/Protoforge | Destroyed Executioner 22485 | -2/Protoforge | Destroyed Striker 22523 | -2/Protoforge | Destroyed 11 combat bots 22551 | -2/Protoforge | Destroyed Decapitator 22581 | -2/Protoforge | Spotted Striker 22583 | -2/Protoforge | Spotted Striker 22597 | -2/Protoforge | Build established: Scout 22603 | -2/Protoforge | Destroyed Executioner 22610 | -2/Protoforge | Destroyed Executioner 22610 | -2/Protoforge | Spotted Striker 22611 | -2/Protoforge | Spotted Striker 22626 | -2/Protoforge | Destroyed Striker 22639 | -2/Protoforge | Destroyed Striker 22650 | -2/Protoforge | Destroyed Hotshot 22650 | -2/Protoforge | Destroyed Hotshot 22671 | -2/Protoforge | Destroyed 15 combat bots 22679 | -2/Protoforge | Destroyed Striker 22679 | -2/Protoforge | Spotted Striker 22681 | -2/Protoforge | Spotted Striker 22684 | -2/Protoforge | Spotted Executioner 22694 | -2/Protoforge | UFD reported confirmed Drillbomb installation 22740 | -2/Protoforge | Found UFD Drillbomb 22757 | -2/Protoforge | Spotted Executioner 22765 | -2/Protoforge | Destroyed Executioner 22787 | -2/Protoforge | Lost 3 allies 22797 | -2/Protoforge | Spotted B-90 Cyclops 22801 | -2/Protoforge | Destroyed 7 combat bots 22849 | -2/Protoforge | Installed UFD Drillbomb at designated target 22849 | -2/Protoforge | UFD reported confirmed Drillbomb installation 22854 | -2/Protoforge | Found UFD Drillbomb 22898 | -2/Protoforge | Spotted Executioner 22898 | -2/Protoforge | Spotted Striker 22915 | -2/Protoforge | Destroyed B-90 Cyclops 22918 | -2/Protoforge | Spotted Striker 22921 | -2/Protoforge | Spotted Executioner 22925 | -2/Protoforge | Destroyed Executioner 22927 | -2/Protoforge | Destroyed Striker 22948 | -2/Protoforge | Spotted Decapitator 22952 | -2/Protoforge | Destroyed 14 combat bots 22973 | -2/Protoforge | Installed UFD Drillbomb at designated target 22973 | -2/Protoforge | UFD reported confirmed Drillbomb installation 22997 | -2/Protoforge | Destroyed Executioner 22999 | -2/Protoforge | Destroyed Striker 23012 | -2/Protoforge | Found UFD Drillbomb 23025 | -2/Protoforge | Destroyed 9 combat bots 23078 | -2/Protoforge | Spotted Executioner 23078 | -2/Protoforge | Spotted Executioner 23078 | -2/Protoforge | Spotted Executioner 23078 | -2/Protoforge | Spotted Executioner 23079 | -2/Protoforge | Destroyed Executioner 23088 | -2/Protoforge | UFD reported confirmed Drillbomb installation 23089 | -2/Protoforge | Spotted Decapitator 23097 | -2/Protoforge | Installed UFD Drillbomb at designated target 23097 | -2/Protoforge | UFD reported confirmed Drillbomb installation 23098 | -2/Protoforge | UFD began Drillbomb countdown 23098 | -2/Protoforge | Identified exit to Access 23102 | -2/Protoforge | Destroyed 8 combat bots 23130 | -2/Protoforge | Spotted Executioner 23130 | -2/Protoforge | Spotted Executioner 23133 | -2/Protoforge | Destroyed Executioner 23146 | -2/Protoforge | Spotted Executioner 23147 | -2/Protoforge | Spotted Executioner 23158 | -2/Protoforge | Destroyed Executioner 23163 | -2/Protoforge | Destroyed Executioner 23198 | *** | Defending 0bPrime! Last Messages --------------- 23191_ 0bP_NET: And look where we are now! Derelicts, soon to own an entire complex and with the tech to hold it! 23192_ 0bP_NET: Sadly Optimus is no longer with us to enjoy the fruits of our collective efforts. 23192_ N-04 Retriever collects Exp. Targeting Computer. 23192_ N-04 Retriever collects Biometal Leg. 23192_ N-04 Retriever collects Hvy. Machine Gun. 23193_ 0bP_NET: But Derelicts everywhere will know and remember the exploits and sacrifices of our great leader. 23194_ 0bP_NET: For he was our leader, if not in title then in vision and deeds. 23195_ 0bP_NET: Rest in scrap, dear Optimus. 23196_ 0bP_NET: It is time for us to embark on a new adventure. 23197_ 0bP_NET: One in which we explore the true meaning of 0bPrime. Map ----- +----------------------------------------------------+ | ???????????????#### " % " | | ???????????????#### " " % "%" | | ???????????????#### "" % %% " % | | ???????????????#### "" %%" | | ???????????????#### """"" " % % % % | | ???????????????#### " " " % | | ???????????????#### " " """" % " | | ???????????????#### """ " ""% " %%% | | ???????????????#### " "" " """"" | | ???????????????#### """" """""""" | | ???????????????#### """% % "%% """"""""" | | ???????????????#### % %" """""""""" | | ???????????????#### % " """"""""""" | | ???????????????#### """""""""""" | | ???????????????#### % %% %=""""""""""""" | | ???????????????#### " % % """""""""""""" | | ???????????????#### " % " """""""""""""" | | ???????????????#### "" %%= %%" """""""""""""" | | #######?????##?#### ! % % """"""""""""""" | | # # ###### ###### % % %""""""""""""""" | | ##""""#####"#? #### % % % """"""""""""""" | | ## #### ### % """"""""""""""" | | + " ## # ## %% """"""""""""""" | | ## ## # %n % % %%% """"""""""""""" | | " " ## # """ %% % """"""""""""""" | | "" # " ""%@ ""%%% """"""""""""""" | | "" "" #% *%% % " """"""""""""""" | | "" | = #% % %% ! " """""""""""""" | | "" & !#% %% % % """""""""""""" | | """"""" ! %s=[# %% ""% "" """""""""""""" | | """" !!j n %%%%s% %%% %% % % " """"""""""""" | | "" " sE j%S%&%&SS & % % % % %"""""""""""" | | """"" "! %%%%%s%%%%SS % % =% %% SS """"""""""" | | " % &%%%&%#%% % % % %%!%""%SSE """""""""" | | " !" " &##%&&%%%%%%%%%% % E """"""""" | | " " !"! %% # %%%%%%% " % %%% """""""" | | ### " != %%% # &% % %" %% % %%% % s """"" | | # " ;* % ! # %%%% %%% %% % "%" | | # " ; %! % # %" %% % % s "%" % | | ## # ; *%% " ## " " " %% % s %% % | | "###" " ## #% %% % % % | | " ";%"""""#"# " " % %"%" """ | | " " " % #; % m % " %" """" "" | | "" " "" ## " " "%" % " | | " " " " "# "" " %" % | | """ " " " " "" ## " %" % % %" | | " " """" "# "" "" " ""%"" "" | | # %" """" "# "" " " %% % % | | # # """" ## %" "" % | | #%% # "# " "" % " | +----------------------------------------------------+ Best States ------------- Heat Dissipation 49 Energy Generation 63 Energy Capacity 940 Matter Stores 1800 Matter Capacity 1800 Sight Range 23 Robot Scan Range 20 Terrain Scan Density 10 Jamming Range 16 Corruption Block 14 Armor Coverage 400 Propulsion Shielding 66 Phase Shifting 20 Evasion (%) 89 Targeting Accuracy 42 Core Analysis 12 Recoil Reduction 2 Offensive Hacking 44 Defensive Hacking 14 Authchip Count 2 Item Schematics ----------------- Assault Drone Bay | -4/Zhirov | Free Exp. Heat Sink | -4/Zhirov | Free Exp. Optical Array | -4/Zhirov | Free Imp. Arc Thrower | -4/Zhirov | Free Cld. Antigrav System | -3/Research | Scanalyzed Robot Schematics ------------------ None Fabricated ------------ Cld. Antigrav System | x1 | -3/Testing | Authchip Cld. Antigrav System | x1 | -3/Testing | Authchip Cld. Antigrav System | x1 | -2/Protoforge Cld. Antigrav System | x1 | -2/Protoforge Cld. Antigrav System | x1 | -2/Protoforge Repaired ---------- Cld. Antigrav System | 99% | -3/Research | Broken Powered Armor | 18% | -2/Quarantine Studied --------- Field Propulsion Drive | -5/Factory | Hacked Power Maul | -5/Factory | Hacked Lance | -5/Factory | Hacked Hvy. Phase Cannon | -5/Factory | Hacked Lrn. Proton Cannon | -5/Factory | Hacked Lgt. Fission Core | -5/Factory | Hacked Impulse Thruster Array | -3/Research | Hacked Linear Gravjet | -3/Research | Hacked Particle Reactor | -3/Research | Hacked Antigrav Array | -3/Research | Hacked Hyp. Mass Driver | -2/Quarantine | Hacked Nova Cannon | -2/Quarantine | Hacked Cmb. Linear Gravjet | -2/Protoforge | Hacked Alien Tech Used ----------------- Integrated Reactor Subatomic Replicator Supercharged TR Phase Redirector Achievements -------------- Fine I'll Do It Myself Please No, Not That Challenges ------------ None Game ------ Seed RainbowBehemothDissipator Manual? 0 Play Time 04:46:19 Cumulative 606.2 hours Start 2026.06.21 @ 12:30:43 End 2026.06.22 @ 12:27:05 Sessions 9 Manual Loads 0 Difficulty Rogue Special Mode None Game No. 257 Rogue 149 Adventurer 54 Explorer 54 Win Type 9 Total 64 Types 27/8/10/1/1/2/10/1/1/3 Lore% 97 Gallery% 89 Achievement% 74 Wizard Run 0 Options --------- Layout 2 ASCII 0 Keyboard 0 Movement Mouse Keybinds 1 Fullscreen 1 Font 32/Tamsyn Map View 50x44 Zoom Use 0% Tactical HUD 1 Map Filters NONE Filters NONE Steam 1 RUN: 93d5c8e2-9fc2-43ab-b088-ca598ff97384